[Event "10th Uppsala Young Champions 2023"]
[Site "Uppsala"]
[Date "2023.10.28"]
[Round "2.4"]
[White "Stefansson, Vignir Vatnar"]
[Black "Sorensen, Hampus"]
[Result "1/2-1/2"]
[ECO "E01"]
[WhiteElo "2484"]
[BlackElo "2470"]
[Annotator "RC"]
[PlyCount "84"]
[EventDate "2023.10.27"]
[EventType "swiss"]
[EventCountry "SWE"]
[SourceTitle "playchess.com"]
[Source "ChessBase"]
[SourceQuality "1"]
[TimeControl "5400+30"]

1. d4 {[%emt 0:00:30]} Nf6 {[%emt 0:00:30]} 2. c4 {[%emt 0:00:30]} e6 {[%emt 0:00:30]} 3. g3 {[%emt 0:00:30]} d5 {[%emt 0:00:30]} 4. Bg2 {[%emt 0:00:30]} Bb4+ {[%emt 0:00:30]} 5. Nd2 {[%emt 0:00:30]} O-O {[%emt 0:00:30]} 6. Ngf3 {[%emt 0:00:30]} b6 {[%emt 0:00:30]} 7. O-O {[%emt 0:00:30]} a5 {[%emt 0:00:30]} 8. Ne5 {[%emt 0:00:30]} Bb7 {[%emt 0:00:30]} 9. a3 {[%emt 0:00:30]} Be7 {[%emt 0:06:40]} 10. b3 {[%emt 0:03:44]} Ra7 {[%emt 0:15:27]} 11. Bb2 {[%emt 0:05:30]} dxc4 {[%emt 0:03:12]} 12. Ndxc4 {[%emt 0:03:43]} Bxg2 {[%emt 0:00:46]} 13. Kxg2 {[%emt 0:00:05]} b5 {[%emt 0:04:08]} 14. Nd2 {[%emt 0:01:18]} c5 {[%emt 0:02:07]} 15. Ndf3 {[%emt 0:00:54]} Qd5 {[%emt 0:05:21]} 16. dxc5 {[%emt 0:01:45]} Bxc5 {[%emt 0:01:29]} 17. Rc1 {[%emt 0:00:26]} Rc7 {[%emt 0:05:51]} 18. Qxd5 {[%emt 0:07:11]} Nxd5 {[%emt 0:00:49]} 19. e4 {[%emt 0:00:10]} Nf6 {[%emt 0:09:15]} 20. Nd3 {[%emt 0:02:13]} Nbd7 {[%emt 0:11:28]} 21. Bxf6 {[%emt 0:10:53]} gxf6 {[%emt 0:00:19]} 22. Nd4 {[%emt 0:03:48]} Rb8 {[%emt 0:02:24]} 23. Nxc5 {[%emt 0:01:47]} Rxc5 {[%emt 0:02:28]} 24. Nc6 {[%emt 0:08:54]} Ra8 {[%emt 0:00:15]} 25. Rfd1 {[%emt 0:02:25]} Kf8 {[%emt 0:02:23]} 26. Nd4 {[%emt 0:01:15]} b4 {[%emt 0:05:45]} 27. Ra1 {[%emt 0:06:06]} Nb6 {[%emt 0:03:11]} 28. axb4 {[%emt 0:00:33]} axb4 {[%emt 0:00:02]} 29. Rxa8+ {[%emt 0:00:05]} Nxa8 {[%emt 0:00:02]} 30. Ra1 {[%emt 0:00:07]} Nb6 {[%emt 0:05:08]} 31. Ra6 {[%emt 0:00:18]} Nd7 {[%emt 0:00:32]} 32. Ra4 {[%emt 0:06:37]} Rc1 {[%emt 0:01:33]} 33. Rxb4 {[%emt 0:00:46]} Nc5 {[%emt 0:00:11]} 34. f3 {[%emt 0:01:24]} Rb1 {[%emt 0:02:20]} 35. Rb8+ {[%emt 0:03:31]} Kg7 {[%emt 0:01:07]} 36. b4 {[%emt 0:01:47]} Nd3 {[%emt 0:01:11]} 37. b5 {[%emt 0:01:26]} Rb2+ {[%emt 0:03:00]} 38. Kh3 {[%emt 0:03:30]} f5 {[%emt 0:02:40]} 39. exf5 {[%emt 0:01:30]} Nf2+ {[%emt 0:00:13]} 40. Kg2 {[%emt 0:00:11]} Ng4+ {[%emt 0:00:25]} 41. Kg1 {[%emt 0:06:51]} Rb1+ {[%emt 0:00:04]} 42. Kg2 {[%emt 0:00:08]} Rb2+ {[%emt 0:00:03]} 1/2-1/2

[Event "10th Uppsala Young Champions 2023"]
[Site "Uppsala"]
[Date "2023.10.28"]
[Round "2.5"]
[White "Briem, Stephan"]
[Black "Grahn, Vidar"]
[Result "1/2-1/2"]
[ECO "D91"]
[WhiteElo "2144"]
[BlackElo "2133"]
[Annotator "NA RC"]
[PlyCount "48"]
[EventDate "2023.10.27"]
[EventType "swiss"]
[EventCountry "SWE"]
[SourceTitle "playchess.com"]
[Source "ChessBase"]
[SourceQuality "1"]
[TimeControl "5400+30"]

1. d4 {[%emt 0:00:09]} Nf6 {[%emt 0:00:05]} 2. c4 {[%emt 0:00:14]} g6 {[%emt 0:00:03]} 3. Nc3 {[%emt 0:02:56]} d5 {[%emt 0:00:28]} 4. Nf3 {[%emt 0:03:43]} Bg7 {[%emt 0:00:09]} 5. Bg5 {[%emt 0:00:36]} Ne4 {[%emt 0:00:13]} 6. Bf4 {[%emt 0:00:39]} Nxc3 {[%emt 0:01:22]} 7. bxc3 {[%emt 0:00:06]} dxc4 {[%emt 0:02:53]} 8. e3 {[%emt 0:08:23]} b5 {[%emt 0:07:40]} 9. Qb1 {[%emt 0:19:17]} c6 {[%emt 0:10:46]} 10. a4 {[%emt 0:05:22]} Bf5 {[%emt 0:06:22]} 11. e4 {[%emt 0:04:59]} Bd7 {[%emt 0:01:11]} 12. Bxc4 {[%emt 0:07:54]} bxc4 {[%emt 0:01:03]} 13. Qb7 {[%emt 0:00:19]} Na6 {[%emt 0:00:20]} 14. Qxa6 {[%emt 0:00:15]} c5 {[%emt 0:00:48]} 15. Qxc4 {[%emt 0:08:05]} cxd4 {[%emt 0:00:39]} 16. cxd4 {[%emt 0:01:33]} Rc8 {[%emt 0:00:45]} 17. Qa2 {[%emt 0:26:27]} O-O {[%emt 0:08:48]} 18. O-O {[%emt 0:00:50]} Be6 {[%emt 0:09:51]} 19. d5 {[%emt 0:01:20]} Bg4 {[%emt 0:00:35]} 20. Ne5 {[%emt 0:07:23]} Qd6 {[%emt 0:01:18]} 21. Nd3 {[%emt 0:00:00]} Qa6 {[%emt 0:00:13]} 22. Ne5 {[%emt 0:00:00]} Qd6 {[%emt 0:01:55]} 23. Nd3 {[%emt 0:00:00]} Qa6 {[%emt 0:00:06]} 24. Ne5 {[%emt 0:00:00]} Qd6 {[%emt 0:00:03]} 1/2-1/2

[Event "10th Uppsala Young Champions 2023"]
[Site "Uppsala"]
[Date "2023.10.28"]
[Round "2.6"]
[White "Frank, Anton"]
[Black "Morell, Oscar"]
[Result "0-1"]
[ECO "B90"]
[WhiteElo "1997"]
[BlackElo "1942"]
[Annotator "NA RC"]
[PlyCount "84"]
[EventDate "2023.10.27"]
[EventType "swiss"]
[EventCountry "SWE"]
[SourceTitle "playchess.com"]
[Source "ChessBase"]
[SourceQuality "1"]
[TimeControl "5400+30"]

1. e4 {[%emt 0:00:02]} c5 {[%emt 0:00:04]} 2. Nf3 {[%emt 0:00:05]} d6 {[%emt 0:00:04]} 3. d4 {[%emt 0:00:05]} cxd4 {[%emt 0:00:04]} 4. Nxd4 {[%emt 0:00:06]} Nf6 {[%emt 0:00:06]} 5. Nc3 {[%emt 0:00:05]} a6 {[%emt 0:00:04]} 6. h3 {[%emt 0:00:06]} h5 {[%emt 0:00:08]} 7. Be3 {[%emt 0:10:44]} e5 {[%emt 0:00:22]} 8. Nf3 {[%emt 0:00:09]} b5 {[%emt 0:06:30]} 9. a4 {[%emt 0:05:06]} b4 {[%emt 0:21:14]} 10. Nd5 {[%emt 0:00:00]} Nbd7 {[%emt 0:03:13]} 11. Ng5 {[%emt 0:22:59]} Be7 {[%emt 0:04:53]} 12. Bc4 {[%emt 0:00:11]} O-O {[%emt 0:01:13]} 13. Qf3 {[%emt 0:13:39]} Bb7 {[%emt 0:04:40]} 14. Qf5 {[%emt 0:14:03]} Rc8 {[%emt 0:19:46]} 15. Bb6 {[%emt 0:07:33]} Qe8 {[%emt 0:03:40]} 16. Nc7 {[%emt 0:00:56]} Rxc7 {[%emt 0:04:24]} 17. Bxc7 {[%emt 0:00:06]} Kh8 {[%emt 0:06:38]} 18. O-O-O {[%emt 0:12:56]} g6 {[%emt 0:02:01]} 19. Qf3 {[%emt 0:00:47]} Qc8 {[%emt 0:12:05]} 20. Bxf7 {[%emt 0:04:07]} Qxc7 {[%emt 0:01:49]} 21. Ne6 {[%emt 0:00:08]} Bxe4 {[%emt 0:01:01]} 22. Qb3 {[%emt 0:01:27]} Nc5 {[%emt 0:00:55]} 23. Nxc5 {[%emt 0:04:28]} Qxc5 {[%emt 0:01:04]} 24. Rd2 {[%emt 0:01:10]} d5 {[%emt 0:02:10]} 25. Be6 {[%emt 0:00:51]} Qc6 {[%emt 0:01:02]} 26. f3 {[%emt 0:00:48]} Qxe6 {[%emt 0:00:03]} 27. fxe4 {[%emt 0:00:02]} Nxe4 28. Rxd5 {[%emt 0:00:30]} Bg5+ 29. Kb1 {[%emt 0:00:30]} Nd2+ 30. Rxd2 {[%emt 0:00:30]} Qxb3 31. cxb3 {[%emt 0:00:30]} Bxd2 32. Rd1 {[%emt 0:00:30]} Rf2 33. Kc2 {[%emt 0:00:30]} Bg5+ 34. Kb1 {[%emt 0:00:30]} e4 35. g4 {[%emt 0:00:30]} e3 36. Re1 {[%emt 0:00:30]} hxg4 37. hxg4 {[%emt 0:00:30]} Rd2 38. a5 {[%emt 0:00:30]} e2 39. Rh1+ {[%emt 0:00:30]} Kg7 40. Ka2 {[%emt 0:00:30]} Bf6 41. g5 {[%emt 0:00:30]} Bxg5 42. Rh2 {[%emt 0:00:30]} Bf6 0-1

[Event "10th Uppsala Young Champions 2023"]
[Site "Uppsala"]
[Date "2023.10.28"]
[Round "2.7"]
[White "Tripathi, Pratyush"]
[Black "Valcu, Lavinia"]
[Result "1/2-1/2"]
[ECO "A01"]
[WhiteElo "1801"]
[BlackElo "1990"]
[Annotator "NA RC"]
[PlyCount "77"]
[EventDate "2023.10.27"]
[EventType "swiss"]
[EventCountry "SWE"]
[SourceTitle "playchess.com"]
[Source "ChessBase"]
[SourceQuality "1"]
[TimeControl "5400+30"]

1. b3 {[%emt 0:00:36]} e5 {[%emt 0:01:17]} 2. Bb2 {[%emt 0:00:10]} d6 {[%emt 0:00:04]} 3. e3 {[%emt 0:00:23]} Nc6 {[%emt 0:01:31]} 4. c4 {[%emt 0:00:33]} f5 {[%emt 0:01:00]} 5. d4 {[%emt 0:01:58]} e4 {[%emt 0:02:16]} 6. Nh3 {[%emt 0:00:05]} Nf6 {[%emt 0:00:49]} 7. Nf4 {[%emt 0:00:06]} Be7 {[%emt 0:04:05]} 8. a3 {[%emt 0:00:35]} O-O {[%emt 0:01:40]} 9. b4 {[%emt 0:00:26]} g5 {[%emt 0:05:22]} 10. Ne2 {[%emt 0:08:06]} f4 {[%emt 0:20:35]} 11. exf4 {[%emt 0:06:47]} Ng4 {[%emt 0:01:50]} 12. Bc1 {[%emt 0:06:05]} gxf4 {[%emt 0:05:48]} 13. Bxf4 {[%emt 0:05:08]} Bg5 {[%emt 0:04:16]} 14. g3 {[%emt 0:14:57]} Bxf4 {[%emt 0:03:29]} 15. Nxf4 {[%emt 0:00:11]} Rxf4 {[%emt 0:02:01]} 16. gxf4 {[%emt 0:00:11]} Qh4 {[%emt 0:00:52]} 17. Ra2 {[%emt 0:04:02]} e3 {[%emt 0:01:29]} 18. Qf3 {[%emt 0:00:49]} exf2+ {[%emt 0:08:20]} 19. Kd1 {[%emt 0:05:54]} Bf5 {[%emt 0:11:59]} 20. h3 {[%emt 0:05:59]} Nf6 {[%emt 0:09:59]} 21. Nc3 {[%emt 0:00:25]} Re8 {[%emt 0:01:51]} 22. Qxf2 {[%emt 0:00:26]} Bg4+ {[%emt 0:00:32]} 23. hxg4 {[%emt 0:05:59]} Qxh1 {[%emt 0:00:05]} 24. Rd2 {[%emt 0:08:21]} Nxg4 {[%emt 0:04:38]} 25. Qg2 {[%emt 0:00:26]} Qxf1+ {[%emt 0:03:25]} 26. Qxf1 {[%emt 0:00:05]} Ne3+ {[%emt 0:00:07]} 27. Ke2 {[%emt 0:00:12]} Nxf1+ {[%emt 0:00:14]} 28. Kxf1 {[%emt 0:00:05]} Re3 {[%emt 0:01:02]} 29. Nb5 {[%emt 0:00:40]} a6 {[%emt 0:01:49]} 30. Nxc7 {[%emt 0:00:22]} Rxa3 {[%emt 0:00:17]} 31. Ne8 {[%emt 0:02:27]} Rf3+ {[%emt 0:00:55]} 32. Ke2 {[%emt 0:00:10]} Rxf4 {[%emt 0:00:09]} 33. Ke3 {[%emt 0:00:23]} Rh4 {[%emt 0:00:42]} 34. Nxd6 {[%emt 0:00:14]} b6 {[%emt 0:01:13]} 35. Rg2+ {[%emt 0:04:57]} Kf8 {[%emt 0:00:07]} 36. Rf2+ {[%emt 0:00:16]} Kg8 {[%emt 0:00:11]} 37. Rg2+ Kf8 {[%emt 0:00:30]} 38. Rf2+ Kg8 {[%emt 0:00:30]} 39. Rg2+ 1/2-1/2

[Event "10th Uppsala Young Champions 2023"]
[Site "Uppsala"]
[Date "2023.10.28"]
[Round "2.8"]
[White "Nilsson, Oliver"]
[Black "Steiners, Emils"]
[Result "1/2-1/2"]
[ECO "C00"]
[WhiteElo "1933"]
[BlackElo "1914"]
[Annotator "NA RC"]
[PlyCount "181"]
[EventDate "2023.10.27"]
[EventType "swiss"]
[EventCountry "SWE"]
[SourceTitle "playchess.com"]
[Source "ChessBase"]
[SourceQuality "1"]
[TimeControl "5400+30"]

1. e4 {[%emt 0:00:44]} e6 {[%emt 0:00:01]} 2. d3 {[%emt 0:00:28]} d5 {[%emt 0:00:07]} 3. Nd2 {[%emt 0:00:11]} Be7 {[%emt 0:00:08]} 4. Ngf3 {[%emt 0:00:06]} Nf6 {[%emt 0:00:06]} 5. g3 {[%emt 0:00:03]} O-O {[%emt 0:03:35]} 6. Bg2 {[%emt 0:00:10]} c5 {[%emt 0:06:10]} 7. O-O Nc6 {[%emt 0:02:25]} 8. Re1 Qc7 {[%emt 0:08:45]} 9. Nf1 {[%emt 0:01:03]} dxe4 {[%emt 0:02:43]} 10. dxe4 {[%emt 0:00:05]} Rd8 {[%emt 0:02:10]} 11. Qe2 {[%emt 0:00:05]} e5 {[%emt 0:02:18]} 12. c3 {[%emt 0:01:00]} b6 {[%emt 0:08:25]} 13. Bg5 {[%emt 0:01:36]} a5 {[%emt 0:09:19]} 14. Bxf6 {[%emt 0:01:30]} Bxf6 {[%emt 0:01:05]} 15. Rad1 {[%emt 1:30:59]} Ba6 {[%emt 0:03:39]} 16. Qc2 {[%emt 0:00:00]} Bxf1 {[%emt 0:04:09]} 17. Bxf1 {[%emt 0:00:00]} Ne7 {[%emt 0:10:50]} 18. a4 {[%emt 0:00:00]} g6 {[%emt 0:01:00]} 19. Bc4 {[%emt 0:00:00]} Nc8 {[%emt 0:04:33]} 20. Rxd8+ {[%emt 0:00:00]} Qxd8 {[%emt 0:01:43]} 21. Rd1 {[%emt 0:00:00]} Nd6 {[%emt 0:01:19]} 22. Nd2 {[%emt 0:00:00]} Qd7 {[%emt 0:05:29]} 23. Nf1 {[%emt 0:00:00]} Rd8 {[%emt 0:05:47]} 24. Ne3 {[%emt 0:00:00]} Bg7 {[%emt 0:03:17]} 25. Qb3 {[%emt 0:00:00]} Qb7 {[%emt 0:02:56]} 26. f3 {[%emt 0:00:00]} Kh8 {[%emt 0:05:21]} 27. Nd5 {[%emt 0:00:00]} Nxc4 {[%emt 0:02:00]} 28. Qxc4 {[%emt 0:00:00]} Qc6 {[%emt 0:01:20]} 29. Ra1 {[%emt 0:00:00]} f5 {[%emt 0:01:16]} 30. Qb5 {[%emt 0:00:00]} Qxb5 {[%emt 0:02:37]} 31. axb5 {[%emt 0:00:00]} Rb8 {[%emt 0:00:53]} 32. b3 {[%emt 0:00:00]} Bf8 {[%emt 0:00:30]} 33. c4 {[%emt 0:00:00]} Bg7 {[%emt 0:00:28]} 34. Kf2 {[%emt 0:00:00]} Rb7 {[%emt 0:00:34]} 35. Ke2 {[%emt 0:00:00]} Kg8 {[%emt 0:00:13]} 36. Rd1 {[%emt 0:00:00]} fxe4 {[%emt 0:00:45]} 37. fxe4 {[%emt 0:00:00]} Kf7 {[%emt 0:00:20]} 38. Rf1+ {[%emt 0:00:00]} Ke6 {[%emt 0:00:11]} 39. g4 {[%emt 0:00:00]} h6 {[%emt 0:00:42]} 40. h4 {[%emt 0:00:00]} Rb8 {[%emt 0:00:44]} 41. Nc7+ {[%emt 0:00:00]} Ke7 {[%emt 0:00:25]} 42. Rd1 {[%emt 0:00:00]} Rb7 {[%emt 0:00:39]} 43. Nd5+ {[%emt 0:00:00]} Ke6 {[%emt 0:00:02]} 44. Ne3 {[%emt 0:00:00]} Rb8 {[%emt 0:00:24]} 45. h5 {[%emt 0:00:00]} g5 {[%emt 0:00:06]} 46. Nf5 {[%emt 0:00:00]} Bf8 {[%emt 0:00:02]} 47. Rd5 {[%emt 0:00:00]} Ra8 {[%emt 0:00:38]} 48. Kd3 {[%emt 0:00:00]} Rb8 {[%emt 0:00:36]} 49. Kc3 {[%emt 0:00:00]} Ra8 {[%emt 0:00:06]} 50. Kb2 {[%emt 0:00:00]} Rb8 {[%emt 0:00:14]} 51. Ka3 {[%emt 0:00:00]} Ra8 {[%emt 0:00:08]} 52. Ka4 {[%emt 0:00:00]} Rb8 {[%emt 0:00:09]} 53. Rd1 Ra8 {[%emt 0:00:30]} 54. Ne3 Rb8 {[%emt 0:00:30]} 55. Nd5 Rb7 {[%emt 0:00:30]} 56. Rf1 Bg7 {[%emt 0:00:30]} 57. Rf5 Rb8 {[%emt 0:00:30]} 58. Rf2 Rb7 {[%emt 0:00:30]} 59. Rf1 Rb8 {[%emt 0:00:30]} 60. Ka3 Rb7 {[%emt 0:00:30]} 61. Kb2 Rb8 {[%emt 0:00:30]} 62. Ra1 Bf8 {[%emt 0:00:30]} 63. Rf1 Bg7 {[%emt 0:00:30]} 64. b4 cxb4 {[%emt 0:00:30]} 65. Kb3 {[%emt 0:00:00]} Rb7 {[%emt 0:02:55]} 66. Ka4 {[%emt 0:16:28]} Kd6 {[%emt 0:00:41]} 67. Ne3 {[%emt 0:02:49]} Ke6 {[%emt 0:00:31]} 68. Rd1 {[%emt 0:00:07]} Rb8 {[%emt 0:00:22]} 69. Rd5 {[%emt 0:00:30]} Bf8 {[%emt 0:00:21]} 70. Nf1 {[%emt 0:02:04]} Rc8 {[%emt 0:00:33]} 71. Nd2 {[%emt 0:01:27]} Bd6 {[%emt 0:00:26]} 72. Kb3 {[%emt 0:00:49]} Ra8 {[%emt 0:00:29]} 73. Ka4 {[%emt 0:00:05]} Rc8 {[%emt 0:00:03]} 74. Rd3 {[%emt 0:00:09]} Rf8 {[%emt 0:00:28]} 75. Rf3 {[%emt 0:00:18]} Rxf3 {[%emt 0:01:04]} 76. Nxf3 {[%emt 0:00:04]} Bc5 {[%emt 0:00:34]} 77. Nd2 {[%emt 0:00:15]} Be3 {[%emt 0:00:32]} 78. Nf3 {[%emt 0:00:40]} Kd6 {[%emt 0:00:24]} 79. Kb3 {[%emt 0:00:07]} Bf4 {[%emt 0:00:27]} 80. Ne1 {[%emt 0:00:18]} Be3 {[%emt 0:00:46]} 81. Nd3 {[%emt 0:00:10]} Bc5 {[%emt 0:00:26]} 82. Nc1 {[%emt 0:01:18]} Be3 {[%emt 0:00:23]} 83. Nd3 {[%emt 0:01:11]} Bc5 {[%emt 0:00:37]} 84. Ka4 {[%emt 0:00:26]} Be3 {[%emt 0:00:29]} 85. Kb3 {[%emt 0:02:37]} Bc5 {[%emt 0:00:25]} 86. Nb2 {[%emt 0:00:48]} Bd4 {[%emt 0:00:32]} 87. Na4 {[%emt 0:00:10]} Bc5 {[%emt 0:00:27]} 88. Kc2 {[%emt 0:00:33]} Bd4 {[%emt 0:00:27]} 89. Kb3 {[%emt 0:01:12]} Bc5 {[%emt 0:00:04]} 90. Nb2 {[%emt 0:00:32]} Bd4 {[%emt 0:00:05]} 91. Nd3 {[%emt 0:00:31]} 1/2-1/2

[Event "10th Uppsala Young Champions 2023"]
[Site "Uppsala"]
[Date "2023.10.28"]
[Round "2.9"]
[White "Oksendal, Martin"]
[Black "Mai, Alexander Oliver"]
[Result "1-0"]
[ECO "C42"]
[WhiteElo "2123"]
[BlackElo "2118"]
[Annotator "NA RC"]
[PlyCount "107"]
[EventDate "2023.10.27"]
[EventType "swiss"]
[EventCountry "SWE"]
[SourceTitle "playchess.com"]
[Source "ChessBase"]
[SourceQuality "1"]
[TimeControl "5400+30"]

1. e4 {[%emt 0:00:02]} e5 {[%emt 0:03:07]} 2. Nf3 {[%emt 0:00:11]} Nf6 {[%emt 0:00:28]} 3. Nxe5 {[%emt 0:00:16]} d6 {[%emt 0:00:10]} 4. Nf3 {[%emt 0:00:06]} Nxe4 {[%emt 0:00:06]} 5. d4 {[%emt 0:00:06]} d5 {[%emt 0:00:03]} 6. Bd3 {[%emt 0:00:09]} Bd6 {[%emt 0:00:05]} 7. O-O {[%emt 0:00:14]} O-O {[%emt 0:00:05]} 8. c4 {[%emt 0:00:06]} c6 {[%emt 0:00:02]} 9. Nc3 {[%emt 0:00:50]} Nxc3 {[%emt 0:00:14]} 10. bxc3 {[%emt 0:00:05]} dxc4 {[%emt 0:00:05]} 11. Bxc4 {[%emt 0:00:10]} Bf5 {[%emt 0:03:04]} 12. Bg5 {[%emt 0:00:35]} Qc7 {[%emt 0:07:06]} 13. Bh4 {[%emt 0:03:41]} Nd7 {[%emt 0:02:05]} 14. Bd3 {[%emt 0:06:47]} Bxd3 {[%emt 0:03:08]} 15. Qxd3 {[%emt 0:00:01]} Rfe8 {[%emt 0:03:34]} 16. Rad1 {[%emt 0:15:39]} Nf8 {[%emt 0:04:17]} 17. Bg3 {[%emt 0:01:55]} Ng6 {[%emt 0:02:27]} 18. c4 {[%emt 0:10:39]} Rad8 {[%emt 0:04:49]} 19. Rfe1 {[%emt 0:03:17]} h6 {[%emt 0:08:28]} 20. Bxd6 {[%emt 0:05:59]} Rxe1+ {[%emt 0:03:40]} 21. Rxe1 {[%emt 0:00:11]} Qxd6 {[%emt 0:00:15]} 22. g3 {[%emt 0:00:20]} Nf8 {[%emt 0:01:08]} 23. Kg2 {[%emt 0:09:21]} Ne6 {[%emt 0:01:32]} 24. h4 {[%emt 0:00:27]} Qc7 {[%emt 0:03:55]} 25. Qf5 {[%emt 0:03:53]} Rd6 {[%emt 0:03:28]} 26. d5 {[%emt 0:07:27]} cxd5 {[%emt 0:04:31]} 27. cxd5 {[%emt 0:00:16]} Nf8 {[%emt 0:08:17]} 28. Rd1 {[%emt 0:07:59]} Qc5 {[%emt 0:05:22]} 29. Qe4 {[%emt 0:02:51]} b5 {[%emt 0:20:44]} 30. Ne5 {[%emt 0:03:56]} Ra6 {[%emt 0:01:31]} 31. Rd2 {[%emt 0:03:28]} Rf6 {[%emt 0:01:56]} 32. Ng4 {[%emt 0:00:44]} Rb6 {[%emt 0:00:57]} 33. Ne3 {[%emt 0:00:44]} a5 {[%emt 0:00:42]} 34. Rc2 {[%emt 0:02:11]} Qa3 {[%emt 0:00:56]} 35. Rc8 {[%emt 0:01:13]} Rf6 {[%emt 0:00:17]} 36. Nf5 {[%emt 0:01:23]} g6 {[%emt 0:01:54]} 37. Nxh6+ {[%emt 0:00:53]} Kh7 38. Ng4 {[%emt 0:00:30]} Rf5 39. Ne3 {[%emt 0:00:30]} Rf6 40. Qe5 {[%emt 0:00:30]} Kg7 41. Ng4 {[%emt 0:00:30]} Qf3+ 42. Kh3 {[%emt 0:00:30]} Qh1+ 43. Nh2 {[%emt 0:00:30]} Nh7 44. g4 {[%emt 0:00:30]} Qb1 45. Rc3 {[%emt 0:00:30]} Kg8 46. Rc8+ {[%emt 0:00:30]} Kg7 47. Kg2 {[%emt 0:00:30]} Qxa2 48. g5 {[%emt 0:00:30]} Qxf2+ 49. Kh1 {[%emt 0:00:30]} Qxh4 50. gxf6+ {[%emt 0:00:30]} Nxf6 51. d6 {[%emt 0:00:30]} Qh3 52. Rc3 {[%emt 0:00:30]} Qh4 53. d7 {[%emt 0:00:30]} Qh8 54. Rc8 {[%emt 0:00:30]} 1-0

[Event "10th Uppsala Young Champions 2023"]
[Site "Uppsala"]
[Date "2023.10.28"]
[Round "2.10"]
[White "Seiger, Vidar"]
[Black "Ostensson, Julia"]
[Result "1-0"]
[ECO "A05"]
[WhiteElo "1908"]
[BlackElo "1878"]
[Annotator "NA"]
[PlyCount "87"]
[EventDate "2023.10.27"]
[EventType "swiss"]
[EventCountry "SWE"]
[SourceTitle "playchess.com"]
[Source "ChessBase"]
[SourceQuality "1"]
[TimeControl "5400+30"]

1. Nf3 {[%emt 0:00:08]} Nf6 {[%emt 0:00:08]} 2. g3 {[%emt 0:00:09]} g6 {[%emt 0:00:03]} 3. b4 {[%emt 0:00:08]} Bg7 {[%emt 0:01:19]} 4. Bb2 {[%emt 0:00:20]} O-O {[%emt 0:06:54]} 5. Bg2 {[%emt 0:00:16]} d6 {[%emt 0:01:35]} 6. O-O {[%emt 0:00:12]} e5 {[%emt 0:01:28]} 7. d3 {[%emt 0:00:11]} Nc6 {[%emt 0:03:29]} 8. b5 {[%emt 0:01:59]} Ne7 {[%emt 0:01:36]} 9. c4 {[%emt 0:02:03]} Nd7 {[%emt 0:09:49]} 10. Qc2 {[%emt 0:07:18]} Nc5 {[%emt 0:06:28]} 11. Nbd2 {[%emt 0:02:25]} Bf5 {[%emt 0:14:09]} 12. h3 {[%emt 0:11:23]} c6 {[%emt 0:08:07]} 13. a4 {[%emt 0:04:18]} a6 {[%emt 0:01:45]} 14. Nh4 {[%emt 0:05:06]} Bd7 {[%emt 0:01:16]} 15. Nb3 {[%emt 0:02:58]} Nxb3 {[%emt 0:07:01]} 16. Qxb3 {[%emt 0:00:06]} axb5 {[%emt 0:01:53]} 17. axb5 {[%emt 0:00:19]} Qb6 {[%emt 0:00:25]} 18. Ba3 {[%emt 0:12:20]} c5 {[%emt 0:11:13]} 19. Bb2 {[%emt 0:05:39]} g5 {[%emt 0:03:42]} 20. Nf3 {[%emt 0:00:19]} g4 {[%emt 0:00:25]} 21. hxg4 {[%emt 0:04:11]} Bxg4 {[%emt 0:00:03]} 22. Ra3 {[%emt 0:14:15]} f5 {[%emt 0:13:34]} 23. Rfa1 {[%emt 0:03:21]} Rxa3 {[%emt 0:00:05]} 24. Qxa3 {[%emt 0:01:14]} Bf6 {[%emt 0:04:57]} 25. Qa5 {[%emt 0:05:24]} Qxa5 {[%emt 0:00:48]} 26. Rxa5 {[%emt 0:00:02]} Nc8 {[%emt 0:00:16]} 27. Kf1 {[%emt 0:02:53]} Kf7 {[%emt 0:00:58]} 28. Nh2 {[%emt 0:01:47]} b6 {[%emt 0:00:24]} 29. Ra6 {[%emt 0:01:10]} Bd8 {[%emt 0:00:37]} 30. Bd5+ {[%emt 0:01:20]} Kg6 {[%emt 0:00:31]} 31. Nxg4 {[%emt 0:00:30]} fxg4 {[%emt 0:00:04]} 32. Be6 {[%emt 0:00:21]} Ne7 {[%emt 0:00:18]} 33. Bxg4 {[%emt 0:00:39]} Kg5 {[%emt 0:01:05]} 34. Bf3 {[%emt 0:00:54]} Nf5 {[%emt 0:00:13]} 35. Ra7 {[%emt 0:02:02]} h6 36. Bc1+ {[%emt 0:00:30]} Kf6 37. Kg2 {[%emt 0:00:30]} Rh8 38. Bd5 {[%emt 0:00:30]} Ne7 39. Rd7 {[%emt 0:00:30]} Nxd5 40. Rxd6+ {[%emt 0:00:30]} Ke7 41. Rxd5 {[%emt 0:00:30]} Bc7 42. Bb2 {[%emt 0:00:30]} Ke6 43. f4 {[%emt 0:00:30]} Ra8 44. Bxe5 {[%emt 0:00:30]} 1-0

[Event "10th Uppsala Young Champions 2023"]
[Site "Uppsala"]
[Date "2023.10.28"]
[Round "2.11"]
[White "Muntean, Victor"]
[Black "Harish, Neeraj"]
[Result "1/2-1/2"]
[ECO "B22"]
[WhiteElo "2092"]
[BlackElo "2076"]
[Annotator "NA RC"]
[PlyCount "83"]
[EventDate "2023.10.27"]
[EventType "swiss"]
[EventCountry "SWE"]
[SourceTitle "playchess.com"]
[Source "ChessBase"]
[SourceQuality "1"]
[TimeControl "5400+30"]

1. e4 {[%emt 0:00:02]} c5 {[%emt 0:00:08]} 2. c3 {[%emt 0:00:04]} d5 {[%emt 0:00:05]} 3. exd5 {[%emt 0:00:05]} Qxd5 {[%emt 0:00:06]} 4. d4 {[%emt 0:00:06]} g6 {[%emt 0:00:04]} 5. dxc5 {[%emt 0:04:30]} Qxc5 {[%emt 0:01:36]} 6. Be3 {[%emt 0:01:17]} Qc7 {[%emt 0:00:24]} 7. Na3 Bd7 {[%emt 0:03:30]} 8. Nb5 Bxb5 {[%emt 0:01:34]} 9. Bxb5+ {[%emt 0:05:11]} Nc6 {[%emt 0:00:06]} 10. Nf3 {[%emt 0:04:24]} Bg7 {[%emt 0:01:50]} 11. O-O {[%emt 0:01:18]} Nf6 {[%emt 0:00:41]} 12. Qa4 {[%emt 0:06:46]} O-O {[%emt 0:03:52]} 13. Bxc6 {[%emt 0:04:19]} bxc6 {[%emt 0:00:19]} 14. Bd4 {[%emt 0:02:37]} c5 {[%emt 0:04:42]} 15. Bxf6 {[%emt 0:08:14]} Bxf6 {[%emt 0:00:13]} 16. Rad1 {[%emt 0:00:54]} Rfd8 {[%emt 0:08:54]} 17. h3 {[%emt 0:03:58]} Qb6 {[%emt 0:01:57]} 18. Qc2 {[%emt 0:02:08]} Rab8 {[%emt 0:02:10]} 19. b3 {[%emt 0:00:58]} c4 {[%emt 0:06:38]} 20. bxc4 {[%emt 0:04:02]} Rdc8 {[%emt 0:04:29]} 21. Qa4 {[%emt 0:06:11]} Bxc3 {[%emt 0:03:36]} 22. Rd7 {[%emt 0:03:39]} Rc7 {[%emt 0:02:43]} 23. Rfd1 {[%emt 0:01:10]} Rbc8 {[%emt 0:02:06]} 24. Rd8+ {[%emt 0:02:13]} Kg7 {[%emt 0:00:14]} 25. Qe8 {[%emt 0:01:56]} Rxd8 {[%emt 0:01:45]} 26. Rxd8 {[%emt 0:00:08]} Rxc4 {[%emt 0:02:00]} 27. Qf8+ {[%emt 0:01:30]} Kf6 {[%emt 0:00:07]} 28. Qh8+ {[%emt 0:00:29]} Kf5 {[%emt 0:03:24]} 29. Qxh7 {[%emt 0:09:12]} Bf6 {[%emt 0:01:00]} 30. Rd1 {[%emt 0:05:31]} Rc2 {[%emt 0:05:09]} 31. Rf1 {[%emt 0:00:23]} Ke6 {[%emt 0:00:48]} 32. Qg8 {[%emt 0:01:58]} Qc5 {[%emt 0:08:08]} 33. Qb8 {[%emt 0:02:51]} Rc1 {[%emt 0:00:24]} 34. Qb3+ {[%emt 0:00:16]} Kd7 {[%emt 0:00:51]} 35. Qxf7 {[%emt 0:05:06]} Rxf1+ {[%emt 0:02:49]} 36. Kxf1 {[%emt 0:00:04]} Qc1+ {[%emt 0:00:29]} 37. Ne1 {[%emt 0:00:42]} Bc3 {[%emt 0:00:07]} 38. Qd5+ {[%emt 0:00:06]} Ke8 {[%emt 0:00:15]} 39. Qg8+ {[%emt 0:02:50]} Kd7 {[%emt 0:01:23]} 40. Qd5+ {[%emt 0:00:07]} Ke8 {[%emt 0:00:04]} 41. Qg8+ {[%emt 0:00:21]} Kd7 {[%emt 0:00:04]} 42. Qd5+ {[%emt 0:00:04]} 1/2-1/2